bitfinex/quotes_SOLUSD_20260302
["timestamp","ask_amount","ask_price","bid_price","bid_amount"]
[1772462943437,0.64096961,85.169,85.12,8.83080619]
[1772462943642,8.83080619,85.16,85.12,8.83080619]
[1772462944349,11.74149915,85.168,85.131,11.74660229]
[1772462944652,46.95100453,85.196,85.131,11.74660229]
[1772462944653,0.64096961,85.211,85.161,0.61156121]
[1772462944836,50.54676699,85.21,85.17,8.83080619]
[1772462945036,0.64096961,85.209,85.17,8.83080619]
[1772462945540,0.64096961,85.243,85.2,8.83080619]
[1772462945847,0.64096961,85.243,85.21,8.83080619]
[1772462946047,4.33480363,85.269,85.23,8.83080619]
[1772462946256,0.64096961,85.269,85.23,8.83080619]
[1772462946555,0.64096961,85.259,85.21,8.83080619]
[1772462946732,0.64096961,85.239,85.2,8.83080619]
[1772462946927,0.64096961,85.239,85.19,8.83080619]
[1772462947126,0.64096961,85.229,85.19,8.83080619]
[1772462947339,0.64096961,85.229,85.18,8.83080619]
[1772462947536,0.64096961,85.219,85.18,8.83080619]
[1772462947756,0.64096961,85.209,85.17,8.83080619]
[1772462948247,8.83080619,85.2,85.16,8.83080619]
[1772462948449,11.73590509,85.209,85.171,0.61156121]
[1772462948650,0.64096961,85.24,85.165,0.61156121]
[1772462948829,0.64096961,85.239,85.2,14.15973529]
[1772462949151,0.64096961,85.239,85.164,3.69383402]
[1772462949152,0.64096961,85.249,85.21,14.15973529]
[1772462949358,0.64096961,85.239,85.19,14.15973529]
[1772462949530,0.64096961,85.239,85.21,14.15973529]
[1772462949732,0.64096961,85.239,85.2,14.15973529]
[1772462949938,0.64096961,85.239,85.21,14.15973529]
[1772462950338,11.72993008,85.252,85.211,11.73557404]
[1772462950546,0.64096961,85.249,85.166,0.61156121]
[1772462950844,0.64096961,85.249,85.22,14.15973529]
[1772462951363,0.64096961,85.249,85.21,14.15973529]
[1772462951655,0.64096961,85.268,85.24,14.15973529]
[1772462951954,0.64096961,85.249,85.2,14.15973529]
[1772462952141,0.64096961,85.219,85.171,0.61156121]
[1772462952344,11.73598723,85.208,85.171,11.74108558]
[1772462952734,29.33037985,85.236,85.2,14.15973529]
[1772462952940,11.7322696,85.235,85.2,14.15973529]
[1772462953348,0.64096961,85.234,85.171,11.74108558]
[1772462953640,41.06294361,85.235,85.18,14.15973529]
[1772462953641,0.64096961,85.219,85.18,14.15973529]
[1772462954154,14.79627115,85.21,85.17,14.15973529]
[1772462954344,46.92205999,85.248,85.181,11.73970721]
[1772462954345,11.73447235,85.219,85.181,11.73970721]
[1772462954758,0.63653586,85.224,85.19,14.15973529]
[1772462954949,0.63653586,85.219,85.176,11.74030531]
[1772462955253,14.15973529,85.22,85.166,0.64749921]
[1772462955254,0.63653586,85.209,85.17,14.15973529]
[1772462955661,0.63653586,85.189,85.137,3.69383402]
[1772462955858,0.63653586,85.189,85.14,14.15973529]
[1772462956059,14.15973529,85.2,85.16,14.15973529]
[1772462956246,0.63653586,85.189,85.14,14.15973529]
[1772462956450,0.63653586,85.169,85.12,14.15973529]
[1772462957146,88.04160258,85.187,85.14,14.15973529]
[1772462957147,0.63653586,85.179,85.14,14.15973529]
[1772462957531,11.73888034,85.187,85.15,14.15973529]
[1772462957737,0.6375795,85.186,85.15,14.15973529]
[1772462958548,11.73915595,85.185,85.15,14.79117832]
[1772462958758,11.73915595,85.185,85.131,11.74660229]
[1772462958759,0.6375795,85.215,85.18,14.15973529]
[1772462958945,0.6375795,85.215,85.131,193.81893785]
[1772462958946,0.6375795,85.208,85.17,14.15973529]
[1772462959145,0.6375795,85.189,85.14,14.15973529]
[1772462959668,0.6375795,85.179,85.14,14.15973529]
[1772462960043,0.6375795,85.179,85.131,11.74660229]
[1772462960044,14.15973529,85.17,85.131,11.74660229]
[1772462960250,0.6375795,85.179,85.14,14.15973529]
[1772462960551,11.74149915,85.168,85.131,11.74660229]
[1772462961059,11.74149915,85.168,85.13,14.15973529]
[1772462961060,0.6375795,85.167,85.13,14.15973529]
[1772462961446,0.6375795,85.149,85.11,14.15973529]
[1772462961636,0.6375795,85.149,85.12,14.15973529]
[1772462962033,14.15973529,85.16,85.12,14.15973529]
[1772462962248,0.6375795,85.164,85.13,14.15973529]
[1772462962450,14.15973529,85.19,85.15,14.15973529]
[1772462962634,0.6375795,85.192,85.17,14.15973529]
[1772462962841,0.6375795,85.192,85.151,11.74384329]
[1772462962842,0.6375795,85.268,85.181,0.63144303]
[1772462963051,0.6375795,85.239,85.2,14.15973529]
[1772462963249,0.6375795,85.239,85.181,0.63144303]
[1772462963250,0.6375795,85.239,85.21,14.15973529]
[1772462963449,0.6375795,85.239,85.181,0.63144303]
[1772462963450,0.6375795,85.239,85.2,14.15973529]
[1772462963651,0.6375795,85.239,85.21,14.15973529]
[1772462963853,0.6375795,85.239,85.2,14.15973529]
[1772462964101,0.6375795,85.256,85.22,14.15973529]
[1772462964235,11.7275915,85.269,85.186,0.63144303]
[1772462964236,14.15973529,85.25,85.186,0.63144303]
[1772462964442,0.6375795,85.229,85.19,14.15973529]
[1772462964650,0.6375795,85.229,85.2,14.15973529]
[1772462964866,4.82477569,85.276,85.191,11.73832916]
[1772462964867,11.7295591,85.255,85.198,0.63144303]
[1772462965152,0.6375795,85.257,85.23,14.15973529]
[1772462965358,11.72937975,85.256,85.23,14.15973529]
[1772462965542,11.72937975,85.256,85.2,14.15973529]
[1772462965543,0.6375795,85.239,85.2,14.15973529]
[1772462966245,0.6375795,85.25,85.22,14.15973529]
[1772462966447,14.15973529,85.23,85.191,11.73832916]
[1772462966665,0.6375795,85.239,85.21,14.15973529]
[1772462966960,0.6375795,85.269,85.23,14.15973529]
[1772462967356,0.6375795,85.259,85.22,14.15973529]
[1772462967548,0.6375795,85.249,85.22,14.15973529]
[1772462967859,0.6375795,85.249,85.188,41.0855989]
[1772462967860,0.6375795,85.249,85.21,14.15973529]
[1772462968061,0.6375795,85.249,85.188,11.73874254]
[1772462968062,0.6375795,85.279,85.24,14.15973529]
[1772462968242,0.6375795,85.278,85.24,14.15973529]
[1772462968558,0.6375795,85.278,85.24,8.81241366]
[1772462968865,0.6375795,85.249,85.21,8.81241366]
[1772462969160,0.6375795,85.259,85.22,8.81241366]
[1772462969557,0.6375795,85.259,85.23,8.81241366]
[1772462969862,8.81241366,85.27,85.23,8.81241366]
[1772462970068,8.81241366,85.28,85.241,0.63144303]
[1772462970738,11.7262163,85.279,85.241,0.63144303]
[1772462971138,8.81241366,85.27,85.23,8.81241366]
[1772462971356,8.81241366,85.26,85.226,0.63144303]
[1772462971553,0.6375795,85.269,85.226,0.63144303]
[1772462971554,0.6375795,85.269,85.23,8.81241366]
[1772462971767,8.81241366,85.28,85.24,8.81241366]
[1772462971944,8.91241366,85.29,85.241,0.63144303]
[1772462972147,0.1,85.29,85.251,0.63144303]
[1772462972450,0.1,85.29,85.227,88.0002816]
[1772462972451,0.1,85.29,85.27,8.81241366]
[1772462972660,46.86414837,85.354,85.227,134.93376512]
[1772462972661,1e-08,85.318,85.281,0.63144303]
[1772462972846,1e-08,85.318,85.266,3.69383402]
[1772462972847,0.6375795,85.343,85.31,8.81241366]
[1772462973052,8.81241366,85.33,85.29,8.81241366]
[1772462973361,8.81241366,85.33,85.238,46.92721787]
[1772462973362,8.81241366,85.33,85.291,12.35600951]
[1772462973540,6.12400893,85.409,85.295,0.63144303]
[1772462973863,6.12400893,85.409,85.291,11.72456648]
[1772462973864,1e-08,85.401,85.39,8.81241366]
[1772462974250,1e-08,85.401,85.38,8.81241366]
[1772462975047,1e-08,85.401,85.39,8.81241366]
[1772462975244,8.81241366,85.44,85.39,8.81241366]
[1772462975443,0.6375795,85.449,85.4,8.81241366]
[1772462975777,11.70220235,85.454,85.4,8.81241366]
[1772462975778,0.6375795,85.439,85.4,8.81241366]
[1772462975947,40.95770823,85.454,85.37,8.81241366]
[1772462975948,0.6375795,85.409,85.37,8.81241366]
[1772462976342,0.6375795,85.453,85.4,8.81241366]
[1772462976559,8.81241366,85.45,85.41,8.81241366]
[1772462976762,29.23908212,85.502,85.421,0.63144303]
[1772462976969,46.75799384,85.547,85.372,3.69383402]
[1772462976970,8.81241366,85.56,85.491,0.63144303]
[1772462977148,14.92363039,85.52,85.48,8.81241366]
[1772462977645,40.91796531,85.537,85.48,8.81241366]
[1772462977646,8.81241366,85.53,85.48,8.81241366]
[1772462978050,11.69084723,85.537,85.49,8.81241366]
[1772462978254,8.81241366,85.53,85.49,8.81241366]
[1772462978449,11.69084723,85.537,85.471,0.63144303]
[1772462978450,14.05702211,85.52,85.471,0.63144303]
[1772462978649,14.05702211,85.52,85.446,3.69383402]
[1772462978650,227.97152107,85.537,85.461,0.63144303]
[1772462978864,14.05702211,85.51,85.47,14.05702211]
[1772462979064,0.6375795,85.509,85.47,14.05702211]
[1772462979770,0.66858286,85.601,85.446,3.69383402]
[1772462979966,0.66858286,85.601,85.28,7.3928304]
[1772462979967,0.66858286,85.549,85.462,0.28432314]
[1772462980269,11.68241235,85.599,85.53,14.05702211]
[1772462980270,0.66858286,85.564,85.53,14.05702211]
[1772462980781,14.05702211,85.56,85.52,14.05702211]
[1772462980947,0.66858286,85.564,85.52,14.05702211]
[1772462981144,11.68729474,85.563,85.52,14.05702211]
[1772462981349,14.05702211,85.56,85.52,14.05702211]
[1772462981645,0.66858286,85.559,85.52,14.05702211]
[1772462982058,0.66858286,85.549,85.5,14.05702211]
[1772462982374,40.90553159,85.563,85.49,14.05702211]
[1772462982375,0.66858286,85.53,85.49,14.05702211]
[1772462982571,40.90553159,85.563,85.51,14.05702211]
[1772462982572,14.05702211,85.55,85.51,14.05702211]
[1772462982867,12.35929342,85.538,85.5,14.05702211]
[1772462983070,0.66858286,85.537,85.49,14.05702211]
[1772462983453,0.66858286,85.529,85.49,14.05702211]
[1772462983655,0.66858286,85.519,85.445,0.0587215]
[1772462983848,0.66858286,85.519,85.47,14.05702211]
[1772462984047,0.66858286,85.519,85.49,14.05702211]
[1772462984263,14.05702211,85.55,85.51,14.05702211]
[1772462984466,0.66858286,85.549,85.491,0.05616344]
[1772462984649,0.66858286,85.549,85.32,56.22808844]
[1772462984650,14.05702211,85.56,85.52,14.05702211]
[1772462984852,46.73728429,85.585,85.466,3.69383402]
[1772462984853,0.66858286,85.549,85.502,11.69555512]
[1772462985170,0.66858286,85.539,85.5,14.05702211]
[1772462985549,0.66858286,85.539,85.491,11.69713771]
[1772462985752,0.66858286,85.539,85.5,14.05702211]
[1772462985979,14.72560497,85.51,85.47,13.55702211]
[1772462986176,0.66858286,85.509,85.47,14.05702211]
[1772462986473,0.66858286,85.519,85.47,14.05702211]
[1772462986663,0.66858286,85.509,85.466,3.69383402]
[1772462986968,0.66858286,85.507,85.47,14.05702211]
[1772462987379,0.66858286,85.507,85.448,29.2573749]
[1772462987380,11.69481218,85.508,85.48,14.05702211]
[1772462987577,11.69481218,85.508,85.433,46.81980026]
[1772462987578,0.67221983,85.507,85.47,14.05702211]
[1772462987751,0.67221983,85.507,85.409,46.833191]
[1772462987752,14.05702211,85.48,85.44,14.05702211]
[1772462988072,14.05702211,85.48,85.386,46.84607789]
[1772462988073,0.67221983,85.509,85.453,3.69383402]
[1772462988266,0.67221983,85.527,85.45,14.05702211]
[1772462988452,0.67221983,85.511,85.44,14.73864536]
[1772462988651,0.67221983,85.511,85.436,3.69383402]
[1772462988652,0.67221983,85.51,85.451,0.68162325]
[1772462988847,14.05702211,85.52,85.471,0.68162325]
[1772462989159,0.67221983,85.509,85.46,14.05702211]
[1772462989564,0.67221983,85.509,85.45,14.05702211]
[1772462989764,0.67221983,85.542,85.452,0.68162325]
[1772462989967,14.05702211,85.5,85.451,1.17026131]
[1772462990270,181.19542217,85.543,85.452,0.68162325]
[1772462990271,14.72924194,85.52,85.452,0.68162325]
[1772462990476,0.67221983,85.52,85.48,13.66830805]
[1772462990771,14.05702211,85.53,85.481,0.68162325]
[1772462990974,14.05702211,85.51,85.468,0.68162325]
[1772462991163,11.69344465,85.518,85.48,14.05702211]
[1772462991468,11.692571,85.525,85.49,14.05702211]
[1772462991670,43.28664348,85.53,85.481,0.68162325]
[1772462991671,11.69194074,85.529,85.481,0.68162325]
[1772462991971,11.69194074,85.529,85.49,14.05702211]
[1772462992163,0.67221983,85.559,85.501,0.68162325]
[1772462992472,314.5,85.586,85.501,0.68162325]
[1772462992473,14.05702211,85.54,85.501,0.68162325]
[1772462992970,14.05702211,85.52,85.48,14.05702211]
[1772462993170,11.68988804,85.545,85.5,0.68162325]
[1772462993367,14.05702211,85.54,85.5,0.68162325]
[1772462993871,0.67221983,85.558,85.5,0.68162325]
[1772462994062,12.36021078,85.558,85.5,0.68162325]
[1772462994262,0.67221983,85.558,85.5,0.68162325]
[1772462994462,11.68811435,85.557,85.52,14.04190873]
[1772462994667,11.68567991,85.575,85.54,14.04190873]
[1772462995162,0.69080544,85.603,85.515,3.69383402]
[1772462995366,0.69080544,85.579,85.53,14.04190873]
[1772462995563,14.04190873,85.56,85.498,0.28432314]
[1772462995769,0.69080544,85.559,85.52,14.04190873]
[1772462996474,0.69080544,85.559,85.51,14.04190873]
[1772462996674,11.68797774,85.558,85.501,11.69576964]
[1772462996860,0.69080544,85.557,85.51,14.04190873]
[1772462997172,14.04190873,85.55,85.501,11.69576964]
[1772462997379,0.69080544,85.549,85.51,14.04190873]
[1772462997762,0.69080544,85.549,85.5,14.04190873]
[1772462997960,0.69080544,85.539,85.5,14.04190873]
[1772462998274,0.69080544,85.539,85.49,14.04190873]
[1772462998480,0.69080544,85.529,85.49,14.04190873]
[1772462998677,14.04190873,85.52,85.48,25.74051723]
[1772462998880,0.69080544,85.527,85.49,14.04190873]
[1772462999079,0.69080544,85.527,85.48,25.74051723]
[1772462999274,0.69080544,85.527,85.48,54.98712462]
[1772462999471,11.69144329,85.533,85.5,14.04190873]
[1772463000170,11.69144329,85.533,85.48,40.94521589]
[1772463000171,0.69080544,85.532,85.48,40.94521589]
[1772463000371,0.69080544,85.509,85.456,11.70192847]
[1772463000573,8.76402507,85.52,85.48,8.76402507]
[1772463000772,0.69080544,85.519,85.474,11.69932887]
[1772463001076,0.69080544,85.499,85.46,8.76402507]
[1772463001260,0.69080544,85.489,85.439,11.70425683]
[1772463001467,0.69080544,85.519,85.44,1.17041198]
[1772463001676,28.75098262,85.51,85.456,0.28432314]
[1772463001866,28.75098262,85.51,85.5,8.76402507]
[1772463002175,12.38213656,85.534,85.5,8.76402507]
[1772463002378,0.69080544,85.533,85.457,1.17017915]
[1772463002680,46.75454141,85.554,85.49,8.76402507]
[1772463002681,0.69080544,85.527,85.49,8.76402507]
[1772463002873,0.69080544,85.509,85.47,8.76402507]
[1772463003257,0.69080544,85.499,85.46,8.76402507]
[1772463003462,192.91927788,85.528,85.44,8.76402507]
[1772463003463,0.69080544,85.479,85.44,8.76402507]
[1772463003665,286.45589746,85.528,85.406,0.14351054]
[1772463003666,0.69080544,85.469,85.406,0.14351054]
[1772463003866,0.69080544,85.449,85.41,8.76402507]
[1772463004559,0.69080544,85.449,85.41,14.07709588]
[1772463004762,0.69080544,85.429,85.377,11.71275636]
[1772463004965,0.69080544,85.399,85.36,14.07709588]
[1772463005474,0.69080544,85.445,85.391,0.14674948]
[1772463005681,0.69080544,85.445,85.41,14.07709588]
[1772463005870,0.69080544,85.459,85.43,14.07709588]
[1772463006080,12.39245245,85.459,85.43,14.07709588]
[1772463006270,14.07709588,85.45,85.41,14.07709588]
[1772463006585,0.69080544,85.449,85.42,14.07709588]
[1772463006783,0.69080544,85.447,85.383,40.9917665]
[1772463006982,0.69080544,85.439,85.39,14.07709588]
[1772463007161,0.69080544,85.429,85.383,11.71193328]
[1772463007367,0.69080544,85.429,85.4,14.07709588]
[1772463007569,14.07709588,85.44,85.4,14.07709588]
[1772463007775,0.69080544,85.429,85.39,14.07709588]
[1772463007972,0.69080544,85.409,85.36,14.07709588]
[1772463008172,0.69080544,85.399,85.36,14.07709588]
[1772463008785,12.40068154,85.398,85.36,14.07709588]
[1772463008984,12.40068154,85.398,85.318,46.88321309]
[1772463008985,14.07709588,85.41,85.37,14.07709588]
[1772463009186,0.69080544,85.429,85.39,14.07709588]
[1772463009569,0.69080544,85.429,85.366,0.15333425]
[1772463009570,0.69080544,85.449,85.42,14.07709588]
[1772463009769,11.70167248,85.458,85.43,14.07709588]
[1772463010072,46.79007317,85.489,85.385,3.69383402]
[1772463010073,0.69080544,85.482,85.45,14.07709588]
[1772463010379,0.69080544,85.482,85.385,3.69383402]
[1772463010380,0.69080544,85.48,85.44,14.07709588]
[1772463010685,14.07709588,85.46,85.42,14.07709588]
[1772463010886,11.70028548,85.468,85.43,14.07709588]
[1772463011079,11.69962278,85.473,85.44,14.07709588]
[1772463011277,40.94862538,85.473,85.43,14.07709588]
[1772463011477,11.69399162,85.514,85.431,0.14211766]
[1772463011788,11.69399162,85.514,85.443,0.14211766]
[1772463011789,0.69080544,85.513,85.443,0.14211766]
[1772463011989,0.69080544,85.509,85.444,1.17035719]
[1772463012192,12.38479706,85.514,85.446,0.13841412]
[1772463012494,0.69080544,85.513,85.48,14.07709588]
[1772463012791,46.75072889,85.561,85.449,0.13841412]
[1772463012792,0.69080544,85.517,85.47,14.07709588]
[1772463012980,40.92705628,85.518,85.47,14.07709588]
[1772463012981,0.69080544,85.509,85.47,14.07709588]
[1772463013172,0.69080544,85.499,85.46,14.07709588]
[1772463013774,0.69080544,85.499,85.441,1.30512628]
[1772463013775,0.69080544,85.499,85.47,14.07709588]
[1772463013978,0.742654,85.514,85.48,14.07709588]
[1772463014179,11.69344465,85.518,85.49,14.07709588]
[1772463014577,0.742654,85.527,85.5,14.07709588]
[1772463014977,14.07709588,85.55,85.51,14.07709588]
[1772463015182,0.742654,85.554,85.52,14.07709588]
[1772463015395,0.742654,85.549,85.501,11.69576964]
[1772463015896,12.74647542,85.572,85.54,14.07709588]
[1772463016294,12.74647542,85.572,85.55,14.07709588]
[1772463016295,1.06034685,85.572,85.55,14.07709588]
[1772463016613,11.6862021,85.571,85.54,14.07709588]
[1772463016794,1.80300085,85.572,85.54,25.76749667]
[1772463016992,1.06034685,85.572,85.526,11.69235086]
[1772463017299,12.42646273,85.571,85.54,14.07709588]
[1772463017503,0.74026063,85.569,85.53,14.07709588]
[1772463017799,11.6862021,85.571,85.483,0.11578826]
[1772463017800,0.74026063,85.539,85.483,0.11578826]
[1772463017977,14.07709588,85.56,85.52,14.07709588]
[1772463018180,14.07709588,85.54,85.5,14.07709588]
[1772463018403,14.07709588,85.51,85.47,14.07709588]
[1772463018602,14.07709588,85.51,85.422,46.82589481]
[1772463018603,0.74026063,85.509,85.423,1.1706449]
[1772463018794,3.69383402,85.547,85.439,0.11503105]
[1772463018795,14.07709588,85.5,85.439,0.11503105]
[1772463018987,0.74026063,85.489,85.45,14.07709588]
[1772463019183,0.74026063,85.489,85.424,11.82134309]
[1772463019494,0.74026063,85.503,85.47,14.07709588]
[1772463020086,11.6940916,85.514,85.48,14.07709588]
[1772463020304,0.74026063,85.516,85.48,14.07709588]
[1772463020803,0.74026063,85.529,85.501,11.69576964]
[1772463020991,0.74026063,85.538,85.478,0.39223691]
[1772463021186,0.74026063,85.538,85.486,29.24443896]
[1772463021391,0.74026063,85.538,85.486,29.34881845]
[1772463021711,14.07709588,85.53,85.49,14.07709588]
[1772463022006,0.74299519,85.612,85.52,14.07709588]
[1772463022183,517.1,85.785,85.492,0.28432314]
[1772463022184,0.74299519,85.629,85.6,14.07709588]
[1772463022384,0.74299519,85.629,85.58,14.07709588]
[1772463022385,6.102449,85.618,85.58,14.07709588]
[1772463022701,14.07709588,85.61,85.57,14.07709588]
[1772463022998,0.74299519,85.633,85.6,14.07709588]
[1772463023181,0.74299519,85.633,85.62,14.07709588]
[1772463023382,0.74299519,85.649,85.62,14.07709588]
[1772463023691,0.74299519,85.672,85.62,14.07709588]
[1772463023915,11.92613786,85.674,85.595,3.69383402]
[1772463023916,1e-08,85.674,85.66,14.07709588]
[1772463024406,14.07709588,85.67,85.593,0.72840396]
[1772463024619,87.54216612,85.673,85.61,14.07709588]
[1772463024820,0.28432314,85.667,85.61,14.07709588]
[1772463024996,0.28432314,85.667,85.6,14.07709588]
[1772463025312,0.28432314,85.667,85.565,3.69383402]
[1772463025313,4.96693726,85.639,85.57,14.07709588]
[1772463025485,0.28432314,85.629,85.56,14.07709588]
[1772463025682,0.28432314,85.629,85.57,14.07709588]
[1772463025881,0.74026063,85.619,85.56,14.07709588]
[1772463026181,8.51860971,85.638,85.54,14.07709588]
[1772463026182,0.74026063,85.599,85.54,14.07709588]
[1772463026482,0.74026063,85.667,85.59,14.07709588]
[1772463026704,0.74026063,85.667,85.61,14.07709588]
[1772463026998,0.74026063,85.665,85.61,14.07709588]
[1772463027299,0.74026063,85.665,85.555,50.44701912]
[1772463027300,0.74026063,85.619,85.55,14.07709588]
[1772463027510,0.28432314,85.608,85.55,14.07709588]
[1772463027803,0.74026063,85.589,85.55,14.07709588]
[1772463028205,0.74026063,85.614,85.57,14.07709588]
[1772463028388,0.74026063,85.61,85.56,14.07709588]
[1772463028717,0.74026063,85.61,85.57,14.07709588]
[1772463028888,11.68101484,85.609,85.57,14.07709588]
[1772463029086,11.68101484,85.609,85.58,14.07709588]
[1772463029393,40.88355195,85.609,85.58,14.07709588]
[1772463029593,0.74026063,85.661,85.6,14.07709588]
[1772463029783,0.74026063,85.661,85.61,14.07709588]
[1772463029983,0.74026063,85.659,85.62,14.07709588]
[1772463030204,1e-08,85.674,85.597,0.72840396]
[1772463030205,0.74026063,85.668,85.597,0.72840396]
[1772463030412,0.74026063,85.668,85.63,14.07709588]
[1772463030983,0.74026063,85.668,85.602,0.72840396]
[1772463030984,1e-08,85.674,85.66,14.07709588]
[1772463031286,0.74026063,85.712,85.661,0.72840396]
[1772463031506,11.66207958,85.748,85.664,0.72840396]
[1772463031698,134.11391517,85.748,85.664,0.72840396]
[1772463031906,40.81727853,85.748,85.7,14.07709588]
[1772463032087,11.66118461,85.755,85.71,14.07709588]
[1772463032287,40.81347077,85.756,85.71,14.07709588]
[1772463032488,40.81347077,85.756,85.682,0.72840396]
[1772463032489,14.07709588,85.75,85.682,0.72840396]
[1772463032692,40.81347077,85.756,85.7,14.07709588]
[1772463032893,40.81347077,85.756,85.655,3.69383402]
[1772463032894,40.81347077,85.756,85.71,14.07709588]
[1772463033092,134.10140397,85.756,85.701,0.72840396]
[1772463033303,14.07709588,85.73,85.67,0.72840396]
[1772463033504,14.07709588,85.73,85.68,14.07709588]
[1772463033505,0.74026063,85.729,85.68,14.07709588]
[1772463033804,0.74026063,85.719,85.67,14.07709588]
[1772463034109,0.74026063,85.719,85.617,46.71928165]
[1772463034110,0.14216157,85.728,85.671,0.72840396]
[1772463034290,0.28432314,85.719,85.65,14.07709588]
[1772463034602,14.07709588,85.7,85.64,14.07709588]
[1772463034997,5.10909883,85.721,85.616,0.72840396]
[1772463035201,69.9717442,85.749,85.616,0.72840396]
[1772463035202,2e-08,85.757,85.711,0.72840396]
[1772463035391,151.44984097,85.837,85.772,6.09280747]
[1772463035592,180.57481038,85.837,85.772,5.29213353]
[1772463035794,180.57481038,85.837,85.78,14.07709588]
[1772463035992,180.57481038,85.837,85.772,5.29213353]
[1772463036212,46.6005811,85.836,85.78,13.99489705]
[1772463036391,40.77495717,85.837,85.773,0.89704711]
[1772463036596,133.97485931,85.837,85.773,0.89704711]
[1772463036918,227.17476145,85.837,85.77,14.07709588]
[1772463037095,0.14216157,85.835,85.77,14.07709588]
[1772463037296,4.96693726,85.833,85.742,0.89704711]
[1772463037626,6.09180219,85.839,85.82,14.07709588]
[1772463037787,6.09180219,85.839,85.741,367.38548572]
[1772463037788,104.75957675,85.911,85.83,14.07709588]
[1772463037995,104.75957675,85.911,85.741,367.38548572]
[1772463037996,6.08739387,85.909,85.87,14.07709588]
[1772463038206,0.09355225,85.908,85.842,0.89704711]
[1772463038397,11.23350522,85.911,85.87,14.07709588]
[1772463038589,11.63616053,85.939,85.88,14.07709588]
[1772463038806,180.36048822,85.939,85.816,0.99059936]
[1772463039142,180.3814777,85.929,85.843,11.64908739]
[1772463039409,14.07709588,85.92,85.85,14.07709588]
[1772463039606,40.73130142,85.929,85.86,14.07709588]
[1772463039811,104.72790437,85.937,85.88,14.07709588]
[1772463040000,14.07709588,85.93,85.87,14.07709588]
[1772463040203,14.07709588,85.93,85.857,0.99059936]
[1772463040407,40.72753201,85.937,85.88,14.07709588]
[1772463040609,40.72753201,85.937,85.873,0.99059936]
[1772463040792,133.81898271,85.937,85.88,14.07709588]
[1772463040995,133.81898271,85.937,85.873,0.99059936]
[1772463040996,29.09107834,85.937,85.89,14.07709588]
[1772463041214,11.63507743,85.947,85.9,14.07709588]
[1772463041394,29.07827623,85.975,85.92,14.07709588]
[1772463041795,29.07827623,85.975,85.93,14.07709588]
[1772463042317,29.07827623,85.975,85.881,40.75406666]
[1772463042318,29.07827623,85.975,85.91,14.07709588]
[1772463042612,3.69383402,85.972,85.91,14.07709588]
[1772463042819,3.69383402,85.972,85.881,11.64401904]
[1772463042820,29.07827623,85.975,85.921,0.99059936]
[1772463043222,29.07827623,85.975,85.93,14.07709588]
[1772463043721,29.07827623,85.975,85.902,0.99059936]
[1772463043922,4.82477569,85.974,85.91,14.07709588]
[1772463044099,4.82477569,85.974,85.9,14.07709588]
[1772463044100,0.74026063,85.954,85.9,14.07709588]
[1772463044293,1.02458377,85.936,85.88,14.07709588]
[1772463044512,0.74026063,85.934,85.831,3.69383402]
[1772463044712,14.81735651,85.95,85.831,3.69383402]
[1772463044915,0.74026063,85.951,85.89,14.07709588]
[1772463045219,180.33950364,85.949,85.89,14.07709588]
[1772463045415,180.33950364,85.949,85.9,14.07709588]
[1772463045630,0.74026063,85.939,85.88,14.07709588]
[1772463045914,0.74026063,85.939,85.844,3.69383402]
[1772463045915,0.74026063,85.909,85.803,29.13631901]
[1772463046118,14.07709588,85.9,85.85,14.07709588]
[1772463046316,0.74026063,85.909,85.85,14.07709588]
[1772463046512,0.74026063,85.909,85.803,29.13631901]
[1772463046513,40.72182339,85.949,85.89,14.07709588]
[1772463046710,40.72182339,85.949,85.899,0.72840396]
[1772463047123,29.08701671,85.949,85.92,14.07709588]
[1772463047503,29.08701671,85.949,85.862,46.58594872]
[1772463047504,11.63115287,85.976,85.901,0.28432314]
[1772463047726,11.63115287,85.976,85.903,3.69383402]
[1772463047929,104.68037589,85.976,85.904,0.28432314]
[1772463048227,1.0133656,85.975,85.92,14.07709588]
[1772463048525,1.0133656,85.975,85.882,0.28432314]
[1772463048702,1.0133656,85.975,85.91,14.07709588]
[1772463048904,133.75825808,85.976,85.882,0.28432314]
[1772463049102,1.0133656,85.975,85.856,1.16474096]
[1772463049297,180.28286959,85.976,85.89,14.07709588]
[1772463049298,14.07709588,85.94,85.89,14.07709588]
[1772463049704,14.07709588,85.94,85.9,14.07709588]
[1772463049904,1.0133656,85.949,85.9,14.07709588]
[1772463050104,1.0133656,85.949,85.901,1.07140562]
[1772463050530,1.0133656,85.939,85.89,14.07709588]
[1772463050841,14.07709588,85.92,85.88,14.07709588]
[1772463051010,14.07709588,85.93,85.89,14.07709588]
[1772463051214,1.0133656,85.919,85.845,1.1648902]
[1772463051514,1.0133656,85.869,85.782,11.65745727]
[1772463051707,14.07709588,85.86,85.81,14.07709588]
[1772463051925,1.0133656,85.876,85.83,14.07709588]
[1772463051926,14.07709588,85.87,85.83,14.07709588]
[1772463052121,14.07709588,85.9,85.85,14.07709588]
[1772463052429,14.07709588,85.9,85.782,238.97787412]
[1772463052430,3.69383402,85.928,85.89,14.07709588]
[1772463052613,1.0133656,85.939,85.89,14.07709588]
[1772463052814,14.07709588,85.93,85.88,14.07709588]
[1772463053023,1.0133656,85.946,85.9,14.07709588]